Workbook

Sheet 심의안건
A1: 2017년도 제3회 예천군 보조금심의위원회 대상자선정심의 조서
K2: (단위 : 천원)
A3: 부서명 | B3: 보 조 사 업 자 | C3: 보 조 사 업 명 | D3: 과목명 | E3: 사 업 내 용 | F3: 2016년 지원액 | G3: 계 | H3: 보조금 | I3: 자부담 | J3: 1차(해당부서) | K3: 2차(예산부서) | L3: 3차(위원회)
A4: 계 | C4: =SUBTOTAL(103,C5:C26)&"건" -> 19건 | F4: =SUBTOTAL(9,F5:F26) -> 2,114,182 | G4: 1,010,418 | H4: 647,254 | I4: 363,164 | J4: 647,254 | K4: 647,254 | L4: 647,254
A5: 환경관리과 소계 | C5: =SUBTOTAL(103,C6:C8)&"건" -> 3건 | F5: =SUBTOTAL(9,F6:F8) -> 140,982 | G5: =SUBTOTAL(9,G6:G8) -> 164,378 | H5: =SUBTOTAL(9,H6:H8) -> 123,000 | I5: =SUBTOTAL(9,I6:I8) -> 41,378 | J5: =SUBTOTAL(9,J6:J8) -> 123,000 | K5: =SUBTOTAL(9,K6:K8) -> 123,000 | L5: 123,000
A6: 환경관리과 | B6: 박미영 외 42명 (대상자 내역 별지) | C6: 야생동물 피해예방시설 지원사업 | D6: 민간자본사업보조 | E6: 야생동물 피해예방시설 43개소 | F6: 71,982 | G6: 95,378 | H6: 54,000 | I6: 41,378 | J6: =H6 -> 54,000 | K6: =J6 -> 54,000 | L6: =K6 -> 54,000
A7: 환경관리과 | B7: 함재수 외 34명 (대상자 내역 별지) | C7: 농촌빈집정비 지원(일반) | D7: 민간자본사업보조 | E7: 농촌빈집정비 지원사업 35개소 | F7: 21,000 | G7: 21,000 | H7: 21,000 | J7: 21,000 | K7: =J7 -> 21,000 | L7: =K7 -> 21,000
A8: 환경관리과 | B8: 김영규 외 7명 (대상자 내역 별지) | C8: 농촌빈집정비 지원(슬레이트지붕) | D8: 민간자본사업보조 | E8: 농촌빈집정비 지원사업 8개소 | F8: 48,000 | G8: 48,000 | H8: 48,000 | J8: 48,000 | K8: 48,000 | L8: 48,000
A9: 농정과 소계 | C9: =SUBTOTAL(103,C10:C20)&"건" -> 11건 | F9: =SUBTOTAL(9,F10:F20) -> 1,838,500 | G9: =SUBTOTAL(9,G10:G20) -> 809,060 | H9: 498,858 | I9: 310,202 | J9: 498,858 | K9: 498,858 | L9: 498,858
A10: 농정과 | B10: 감천면 현내리 성종선 외 3명 (대상자 내역 별지) | C10: 원예산업육성지원 (일손절감형 농기자재 지원) | D10: 민간자본사업보조 | E10: 2,300,000원 * 7동 * 50%(비가림) 20,000,000원 * 1식 * 50%(보온덮개) 4,000원 * 2,500㎡ * 50%(PO필름) | F10: 45,210 | G10: 46,100 | H10: =G10*0.5 -> 23,050 | I10: =G10*0.5 -> 23,050 | J10: =H10 -> 23,050 | K10: =J10 -> 23,050 | L10: =K10 -> 23,050
A11: 농정과 | B11: 유천면 매산길 홍성필 외 3명 (대상자 내역 별지) | C11: 원예산업육성지원 (원예특용작물 점적관수시설 지원) | D11: 민간자본사업보조 | E11: 5,000,000원 * 4식 * 50% | F11: 19,440 | G11: 20,000 | H11: =G11*0.5 -> 10,000 | I11: =G11*0.5 -> 10,000 | J11: =H11 -> 10,000 | K11: =J11 -> 10,000 | L11: =K11 -> 10,000
A12: 농정과 | B12: 유천면 죽안리 이옥화 외 4명 (대상자 내역 별지) | C12: 소득작목육성 지원사업 | D12: 민간자본사업보조 | E12: 6,000,000원 * 2동 * 50% (이동식저온저장고) 20,000,000 * 1동 * 50% (내재해형하우스) 1,000원 * 1,000㎡ * 50%(스프링클러) | F12: 956,578 | G12: 39,000 | H12: =G12*0.5 -> 19,500 | I12: =G12*0.5 -> 19,500 | J12: =H12 -> 19,500 | K12: 19,500 | L12: 19,500
A13: 농정과 | B13: 예천읍 석정리 권은순 외 24명 (대상자 내역 별지) | C13: 민속채소양채류 생산기반 확충지원 | D13: 민간자본사업보조 | E13: 6,000,000원 * 25동 * 50% (이동식저온저장고) | F13: 205,004 | G13: =H13+I13 -> 150,000 | H13: 75,000 | I13: 75,000 | J13: =H13 -> 75,000 | K13: 75,000 | L13: 75,000
A14: 농정과 | B14: 감천면 대맥리 김수호 외 9명 (대상자 내역 별지) | C14: 인삼약용산업육성 지원 | D14: 민간자본사업보조 | E14: 6,000,000원 * 10동 * 50% (이동식저온저장고) | F14: 218,868 | G14: 60,000 | H14: 30,000 | I14: 30,000 | J14: 30,000 | K14: 30,000 | L14: 30,000
A15: 농정과 | B15: 호명면 황지리 안기태 외 7명 (대상자 내역 별지) | C15: 에너지절감시설 설치 | D15: 민간자본사업보조 | E15: 3,120㎡ * 2,500원 * 50%(자동보온덮개) 3,800㎡ * 13,000원 * 50%(다겹보온커튼) | F15: 119,450 | G15: 57,200 | H15: 28,600 | I15: 28,600 | J15: 28,600 | K15: 28,600 | L15: =K15 -> 28,600
A16: 농정과 | B16: 예천군 개포면 신음리길 20-8 조현준 | C16: 원예특용작물 점적관수시설 지원사업 | D16: 민간자본사업보조 | E16: 관수관비시설 16,000천원 * 50% * 1개소 | F16: 235,500 | G16: 16,000 | H16: 8,000 | I16: 8,000 | J16: 8,000 | K16: 8,000 | L16: 8,000
A17: 농정과 | B17: 용궁 무이 재배단지 윤경덕 외 3명 (대상자 내역 별지) | C17: 토종곡물 재배단지 지원 | D17: 민간자본사업보조 | E17: 1,000,000원 * 19ha * 70% | F17: 9,450 | G17: =SUM(H17:I17) -> 19,000 | H17: 13,300 | I17: 5,700 | J17: 13,300 | K17: 13,300 | L17: 13,300
A18: 농정과 | B18: 보문면 무근열길 162-9 김점순 외 3명 (대상자 내역 별지) | C18: 고구마 종순 증식용 온실 지원 | D18: 민간자본사업보조 | E18: 60,000원 * 4,946㎡ * 80% | G18: =SUM(H18:I18) -> 296,760 | H18: 237,408 | I18: 59,352 | J18: 237,408 | K18: 237,408 | L18: =K18 -> 237,408
A19: 농정과 | B19: 예천읍 통명길 50-8 윤철근 외 99명 (대상자 내역 별지) | C19: 공공비축미 톤백저울 지원 | D19: 민간자본사업보조 | E19: 1,000천원 * 100대 * 50% | F19: 29,000 | G19: 100,000 | H19: 50,000 | I19: 50,000 | J19: 50,000 | K19: 50,000 | L19: =K19 -> 50,000
A20: 농정과 | B20: 용궁면 신당길 19 김영규 | C20: 귀농인 빈집수리비 지원 | D20: 민간자본이전 | E20: 5,000,000원 * 1농가 * 80% | F20: 0 | G20: 5,000 | H20: 4,000 | I20: 1,000 | J20: 4,000 | K20: 4,000 | L20: 4,000
A21: 산림축산과 소계 | C21: =SUBTOTAL(103,C22:C26)&"건" -> 5건 | F21: =SUBTOTAL(9,F22:F26) -> 134,700 | G21: =SUBTOTAL(9,G22:G26) -> 36,980 | H21: 25,396 | I21: 11,584 | J21: 25,396 | K21: 25,396 | L21: 25,396
A22: 산림축산과 | B22: 감천면 소백로 윤창걸 외 1명 (대상자 내역 별지) | C22: 한우보정용 개체잠금장치 지원 | D22: 민간자본사업보조 | E22: 50,000원 * 40두 * 50% | F22: 15,600 | G22: 2,000 | H22: 1,000 | I22: 1,000 | J22: =H22 -> 1,000 | K22: =J22 -> 1,000 | L22: =K22 -> 1,000
A23: 산림축산과 | B23: 유천면 교동길 주상헌 외 1명 (대상자 내역 별지) | C23: 축사 환기시설(송풍기) 지원 | D23: 민간자본사업보조 | E23: 300,000원 * 3대 * 60% | F23: 16,200 | G23: 900 | H23: 540 | I23: 360 | J23: =H23 -> 540 | K23: =J23 -> 540 | L23: =K23 -> 540
A24: 산림축산과 | B24: 예천읍 통명리 안승영 외 7명 (대상자 내역 별지) | C24: 면역강화용 사료첨가제 지원 | D24: 민간자본사업보조 | E24: 30,000원 * 136포 * 70% | F24: 102,900 | G24: =SUM(H24:I24) -> 4,080 | H24: 2,856 | I24: 1,224 | J24: =H24 -> 2,856 | K24: 2,856 | L24: 2,856
A25: 산림축산과 | B25: 예천읍 시장로 109 정기숙 외 4명 (대상자 내역 별지) | C25: 축산물위생기자재지원(이력정보전자저울) | D25: 민간자본사업보조 | E25: 2,000,000원 * 5대 * 70% | G25: =SUM(H25:I25) -> 10,000 | H25: 7,000 | I25: 3,000 | J25: =H25 -> 7,000 | K25: 7,000 | L25: 7,000
A26: 산림축산과 | B26: 예천읍 충효로 781 이경남 외 4명 (대상자 내역 별지) | C26: 축산물위생기자재지원(냉동육절기) | D26: 민간자본사업보조 | E26: 4,000,000원 * 5대 * 70% | G26: 20,000 | H26: 14,000 | I26: 6,000 | J26: 14,000 | K26: 14,000 | L26: 14,000

Sheet 대상자별지내역
A1: 2017년도 제3회 예천군 보조금심의위원회 대상자내역 별지 조서
L2: (단위 : 천원)
A3: 부서명 | B3: 보 조 사 업 자 | D3: 보 조 사 업 명 | E3: 과목명 | F3: 사 업 내 용 | G3: 2016년 지원액 | H3: 계 | I3: 보조금 | J3: 자부담 | K3: 1차(해당부서) | L3: 2차(예산부서) | M3: 3차(위원회)
B4: 주소 | C4: 성명
A5: 소계 | C5: =SUBTOTAL(103,C6:C91)&"명" -> 86명 | G5: =SUBTOTAL(9,G6:G91) -> 0 | H5: =SUBTOTAL(9,H6:H91) -> 164,378 | I5: =SUBTOTAL(9,I6:I91) -> 123,000 | J5: 41,378 | K5: 123,000 | L5: 123,000 | M5: 123,000
A6: 환경관리과 | B6: 용문면 여각길 80 | C6: 권길홍 | D6: 야생동물 피해예방시설 설치지원 | E6: 민간자본사업보조 | F6: 야생동물피해예방시설 2,837,000원*1식 | H6: =I6+J6 -> 2,837 | I6: 1,703 | J6: 1,134 | K6: 1,703 | L6: 1,703 | M6: =L6 -> 1,703
A7: 환경관리과 | B7: 예천읍 충효로 771-23 | C7: 심장보 | D7: 야생동물 피해예방시설 설치지원 | E7: 민간자본사업보조 | F7: 야생동물피해예방시설 2,041,000원*1식 | H7: =I7+J7 -> 2,041 | I7: 1,225 | J7: 816 | K7: 1,225 | L7: 1,225 | M7: =L7 -> 1,225
A8: 환경관리과 | B8: 예천읍 용산길 97 | C8: 박용제 | D8: 야생동물 피해예방시설 설치지원 | E8: 민간자본사업보조 | F8: 야생동물피해예방시설 2,439,000원*1식 | H8: 2,439 | I8: 1,464 | J8: 975 | K8: 1,464 | L8: 1,464 | M8: 1,464
A9: 환경관리과 | B9: 예천읍 나부들길 25 | C9: 우영구 | D9: 야생동물 피해예방시설 설치지원 | E9: 민간자본사업보조 | F9: 야생동물피해예방시설 1,445,000원*1식 | H9: 1,445 | I9: 867 | J9: 578 | K9: 867 | L9: 867 | M9: 867
A10: 환경관리과 | B10: 용문면 노사길 140 | C10: 황철진 | D10: 야생동물 피해예방시설 설치지원 | E10: 민간자본사업보조 | F10: 야생동물피해예방시설 1,544,000원*1식 | H10: 1,544 | I10: 927 | J10: 617 | K10: 927 | L10: 927 | M10: 927
A11: 환경관리과 | B11: 용문면 성현길 222-8 | C11: 김종태 | D11: 야생동물 피해예방시설 설치지원 | E11: 민간자본사업보조 | F11: 야생동물피해예방시설 1644,000원*1식 | H11: 1,644 | I11: 987 | J11: 657 | K11: 987 | L11: 987 | M11: 987
A12: 환경관리과 | B12: 용문면 직동길 140 | C12: 임병철 | D12: 야생동물 피해예방시설 설치지원 | E12: 민간자본사업보조 | F12: 야생동물피해예방시설 1,445,000원*1식 | H12: 1,445 | I12: 867 | J12: 578 | K12: 867 | L12: 867 | M12: 867
A13: 환경관리과 | B13: 용문면 선동길 319-16 | C13: 김현식 | D13: 야생동물 피해예방시설 설치지원 | E13: 민간자본사업보조 | F13: 야생동물피해예방시설 2,340,000원*1식 | H13: 2,340 | I13: 1,404 | J13: 936 | K13: 1,404 | L13: 1,404 | M13: 1,404
A14: 환경관리과 | B14: 효자면 고항길22 | C14: 진창운 | D14: 야생동물 피해예방시설 설치지원 | E14: 민간자본사업보조 | F14: 야생동물피해예방시설 3,235,000원*1식 | H14: 3,235 | I14: 1,800 | J14: 1,435 | K14: 1,800 | L14: 1,800 | M14: 1,800
A15: 환경관리과 | B15: 효자면 음달마길19 | C15: 황보섭 | D15: 야생동물 피해예방시설 설치지원 | E15: 민간자본사업보조 | F15: 야생동물피해예방시설 2,757,000원*1식 | H15: 2,757 | I15: 1,655 | J15: 1,102 | K15: 1,655 | L15: 1,655 | M15: 1,655
A16: 환경관리과 | B16: 효자면 어동길 48 | C16: 한대환 | D16: 야생동물 피해예방시설 설치지원 | E16: 민간자본사업보조 | F16: 야생동물피해예방시설 3831000원*1식 | H16: 3,831 | I16: 1,800 | J16: 2,031 | K16: 1,800 | L16: 1,800 | M16: =L16 -> 1,800
A17: 환경관리과 | B17: 효자면 하사곡길 22 | C17: 최운섭 | D17: 야생동물 피해예방시설 설치지원 | E17: 민간자본사업보조 | F17: 야생동물피해예방시설 1733000원*1식 | H17: 1,733 | I17: 1,040 | J17: 693 | K17: 1,040 | L17: 1,040 | M17: 1,040
A18: 환경관리과 | B18: 효자면 제촌길55 | C18: 안병삼 | D18: 야생동물 피해예방시설 설치지원 | E18: 민간자본사업보조 | F18: 야생동물피해예방시설 2320000원*1식 | H18: 2,320 | I18: 1,392 | J18: 928 | K18: 1,392 | L18: 1,392 | M18: 1,392
A19: 환경관리과 | B19: 효자면 음정길 41 | C19: 반우기 | D19: 야생동물 피해예방시설 설치지원 | E19: 민간자본사업보조 | F19: 야생동물피해예방시설 1683000원*1식 | H19: 1,683 | I19: 1,010 | J19: 673 | K19: 1,010 | L19: 1,010 | M19: 1,010
A20: 환경관리과 | B20: 효자면 어동길 55-1 | C20: 신재옥 | D20: 야생동물 피해예방시설 설치지원 | E20: 민간자본사업보조 | F20: 야생동물피해예방시설 1166000원*1식 | H20: 1,166 | I20: 700 | J20: 466 | K20: 700 | L20: 700 | M20: 700
A21: 환경관리과 | B21: 은풍면 은풍면로293-6 | C21: 권영자 | D21: 야생동물 피해예방시설 설치지원 | E21: 민간자본사업보조 | F21: 야생동물피해예방시설 1100000원*1식 | H21: 1,100 | I21: 660 | J21: 440 | K21: 660 | L21: 660 | M21: 660
A22: 환경관리과 | B22: 은풍면 부용봉길 532 | C22: 김형수 | D22: 야생동물 피해예방시설 설치지원 | E22: 민간자본사업보조 | F22: 야생동물피해예방시설 3115000원*1식 | H22: 3,115 | I22: 1,800 | J22: 1,315 | K22: 1,800 | L22: 1,800 | M22: 1,800
A23: 환경관리과 | B23: 은풍면 부용봉길 237-18 | C23: 임운식 | D23: 야생동물 피해예방시설 설치지원 | E23: 민간자본사업보조 | F23: 야생동물피해예방시설 1604000원*1식 | H23: 1,604 | I23: 963 | J23: 641 | K23: 963 | L23: 963 | M23: 963
A24: 환경관리과 | B24: 은풍면 부용봉길 230 | C24: 남병화 | D24: 야생동물 피해예방시설 설치지원 | E24: 민간자본사업보조 | F24: 야생동물피해예방시설 2578000원*1식 | H24: 2,578 | I24: 1,547 | J24: 1,031 | K24: 1,547 | L24: 1,547 | M24: =L24 -> 1,547
A25: 환경관리과 | B25: 은풍면 조고리길 66-1 | C25: 이영호 | D25: 야생동물 피해예방시설 설치지원 | E25: 민간자본사업보조 | F25: 야생동물피해예방시설 3374000원*1식 | H25: 3,374 | I25: 1,800 | J25: 1,574 | K25: 1,800 | L25: 1,800 | M25: =L25 -> 1,800
A26: 환경관리과 | B26: 보문면 사길 85 | C26: 최종상 | D26: 야생동물 피해예방시설 설치지원 | E26: 민간자본사업보조 | F26: 야생동물피해예방시설 1695000원*1식 | H26: 1,695 | I26: 1,017 | J26: 678 | K26: 1,017 | L26: 1,017 | M26: 1,017
A27: 환경관리과 | B27: 보문면 보문사길 32 | C27: 윤종태 | D27: 야생동물 피해예방시설 설치지원 | E27: 민간자본사업보조 | F27: 야생동물피해예방시설 1707000원*1식 | H27: 1,707 | I27: 1,025 | J27: 682 | K27: 1,025 | L27: 1,025 | M27: 1,025
A28: 환경관리과 | B28: 보문면 보문사길 208 | C28: 이원칠 | D28: 야생동물 피해예방시설 설치지원 | E28: 민간자본사업보조 | F28: 야생동물피해예방시설 4030000원*1식 | H28: 4,030 | I28: 1,800 | J28: 2,230 | K28: 1,800 | L28: 1,800 | M28: 1,800
A29: 환경관리과 | B29: 예천읍 인포길 54 | C29: 우상윤 | D29: 야생동물 피해예방시설 설치지원 | E29: 민간자본사업보조 | F29: 야생동물피해예방시설 3000000원*1식 | H29: 3,000 | I29: 1,800 | J29: 1,200 | K29: 1,800 | L29: 1,800 | M29: 1,800
A30: 환경관리과 | B30: 호명면 백골길 113-20 | C30: 전상대 | D30: 야생동물 피해예방시설 설치지원 | E30: 민간자본사업보조 | F30: 야생동물피해예방시설 1946000원*1식 | H30: 1,946 | I30: 1,168 | J30: 778 | K30: 1,168 | L30: 1,168 | M30: 1,168
A31: 환경관리과 | B31: 호명면 백골길 240-19 | C31: 김성규 | D31: 야생동물 피해예방시설 설치지원 | E31: 민간자본사업보조 | F31: 야생동물피해예방시설 2626000원*1식 | H31: 2,626 | I31: 1,576 | J31: 1,050 | K31: 1,576 | L31: 1,576 | M31: 1,576
A32: 환경관리과 | B32: 호명면 한어길 232-18 | C32: 신학근 | D32: 야생동물 피해예방시설 설치지원 | E32: 민간자본사업보조 | F32: 야생동물피해예방시설 4507000원*1식 | H32: 4,507 | I32: 1,800 | J32: 2,707 | K32: 1,800 | L32: 1,800 | M32: =L32 -> 1,800
A33: 환경관리과 | B33: 예천읍 중앙로 30 | C33: 강무한 | D33: 야생동물 피해예방시설 설치지원 | E33: 민간자본사업보조 | F33: 야생동물피해예방시설 1445000원*1식 | H33: 1,445 | I33: 867 | J33: 578 | K33: 867 | L33: 867 | M33: 867
A34: 환경관리과 | B34: 유천면 중평천로 67-7 | C34: 정희경 | D34: 야생동물 피해예방시설 설치지원 | E34: 민간자본사업보조 | F34: 야생동물피해예방시설 1445000원*1식 | H34: 1,445 | I34: 867 | J34: 578 | K34: 867 | L34: 867 | M34: 867
A35: 환경관리과 | B35: 유천면 준평길 60 | C35: 박성수 | D35: 야생동물 피해예방시설 설치지원 | E35: 민간자본사업보조 | F35: 야생동물피해예방시설 1047000원*1식 | H35: 1,047 | I35: 629 | J35: 418 | K35: 629 | L35: 629 | M35: 629
A36: 환경관리과 | B36: 개포면 황산2길 35 | C36: 백승후 | D36: 야생동물 피해예방시설 설치지원 | E36: 민간자본사업보조 | F36: 야생동물피해예방시설 2,439,000원*1식 | H36: 2,439 | I36: 1,464 | J36: 975 | K36: 1,464 | L36: 1,464 | M36: 1,464
A37: 환경관리과 | B37: 개포면 우감2길 16 | C37: 고재근 | D37: 야생동물 피해예방시설 설치지원 | E37: 민간자본사업보조 | F37: 야생동물피해예방시설 2041000원*1식 | H37: 2,041 | I37: 1,225 | J37: 816 | K37: 1,225 | L37: 1,225 | M37: 1,225
A38: 환경관리과 | B38: 개포면 송담길 111-64 | C38: 남원진 | D38: 야생동물 피해예방시설 설치지원 | E38: 민간자본사업보조 | F38: 야생동물피해예방시설 2942000원*1식 | H38: 2,942 | I38: 1,766 | J38: 1,176 | K38: 1,766 | L38: 1,766 | M38: 1,766
A39: 환경관리과 | B39: 예천읍 대창학교길 40-6 | C39: 차길광 | D39: 야생동물 피해예방시설 설치지원 | E39: 민간자본사업보조 | F39: 야생동물피해예방시설 1140000원*1식 | H39: 1,140 | I39: 684 | J39: 456 | K39: 684 | L39: 684 | M39: 684
A40: 환경관리과 | B40: 지보면 수월2길 152 | C40: 최장열 | D40: 야생동물 피해예방시설 설치지원 | E40: 민간자본사업보조 | F40: 야생동물피해예방시설 1435000원*1식 | H40: 1,435 | I40: 861 | J40: 574 | K40: 861 | L40: 861 | M40: =L40 -> 861
A41: 환경관리과 | B41: 풍양면 효제길 48 | C41: 전진형 | D41: 야생동물 피해예방시설 설치지원 | E41: 민간자본사업보조 | F41: 야생동물피해예방시설 2837000원*1식 | H41: 2,837 | I41: 1,703 | J41: 1,134 | K41: 1,703 | L41: 1,703 | M41: 1,703
A42: 환경관리과 | B42: 감천면 소백로 418-27 | C42: 정춘섭 | D42: 야생동물 피해예방시설 설치지원 | E42: 민간자본사업보조 | F42: 야생동물피해예방시설 1650000원*1식 | H42: 1,650 | I42: 990 | J42: 660 | K42: 990 | L42: 990 | M42: 990
A43: 환경관리과 | B43: 감천면 포리1길 2-1 | C43: 황세창 | D43: 야생동물 피해예방시설 설치지원 | E43: 민간자본사업보조 | F43: 야생동물피해예방시설 1,100,000원*1식 | H43: 1,100 | I43: 660 | J43: 440 | K43: 660 | L43: 660 | M43: 660
A44: 환경관리과 | B44: 감천면 석송로 176-40 | C44: 박천호 | D44: 야생동물 피해예방시설 설치지원 | E44: 민간자본사업보조 | F44: 야생동물피해예방시설 2,041,000원*1식 | H44: 2,041 | I44: 1,225 | J44: 816 | K44: 1,225 | L44: 1,225 | M44: 1,225
A45: 환경관리과 | B45: 감천면 수한길 109-91 | C45: 박우락 | D45: 야생동물 피해예방시설 설치지원 | E45: 민간자본사업보조 | F45: 야생동물피해예방시설 3,632,000원*1식 | H45: 3,632 | I45: 1,800 | J45: 1,832 | K45: 1,800 | L45: 1,800 | M45: =L45 -> 1,800
A46: 환경관리과 | B46: 감천면 도평길 48 | C46: 김홍년 | D46: 야생동물 피해예방시설 설치지원 | E46: 민간자본사업보조 | F46: 야생동물피해예방시설 3,672,000원*1식 | H46: 3,672 | I46: 1,800 | J46: 1,872 | K46: 1,800 | L46: 1,800 | M46: =L46 -> 1,800
A47: 환경관리과 | B47: 용궁면 고두실길 119 | C47: 이승헌 | D47: 야생동물 피해예방시설 설치지원 | E47: 민간자본사업보조 | F47: 야생동물피해예방시설 1,32,5000원*1식 | H47: 1,325 | I47: 795 | J47: 530 | K47: 795 | L47: 795 | M47: 795
A48: 환경관리과 | B48: 용궁면 경서로 1398-12 | C48: 박재선 | D48: 야생동물 피해예방시설 설치지원 | E48: 민간자본사업보조 | F48: 야생동물피해예방시설 1,445,000원*1식 | H48: 1,445 | I48: 867 | J48: 578 | K48: 867 | L48: 867 | M48: 867
A49: 환경관리과 | B49: 예천읍 고평길 70-5 | C49: 함재수 | D49: 농촌빈집 정비지원(일반) | E49: 민간자본사업보조 | F49: 농촌빈집정비지원 600,000원*1식 | H49: 600 | I49: 600 | K49: 600 | L49: 600 | M49: 600
A50: 환경관리과 | B50: 예천읍 가수내길 16-8 | C50: 김효일 | D50: 농촌빈집 정비지원(일반) | E50: 민간자본사업보조 | F50: 농촌빈집정비지원 600,000원*1식 | H50: 600 | I50: 600 | K50: 600 | L50: 600 | M50: 600
A51: 환경관리과 | B51: 예천읍 생내실길 19 | C51: 황경란 | D51: 농촌빈집 정비지원(일반) | E51: 민간자본사업보조 | F51: 농촌빈집정비지원 600,000원*1식 | H51: 600 | I51: 600 | K51: 600 | L51: 600 | M51: 600
A52: 환경관리과 | B52: 용문면 금당실길79 | C52: 안준식 | D52: 농촌빈집 정비지원(일반) | E52: 민간자본사업보조 | F52: 농촌빈집정비지원 600,000원*1식 | H52: 600 | I52: 600 | K52: 600 | L52: 600 | M52: 600
A53: 환경관리과 | B53: 용문면 죽림길43-5 | C53: 권영기 | D53: 농촌빈집 정비지원(일반) | E53: 민간자본사업보조 | F53: 농촌빈집정비지원 600,000원*1식 | H53: 600 | I53: 600 | K53: 600 | L53: 600 | M53: 600
A54: 환경관리과 | B54: 용문면 선동길 400-13 | C54: 정원모 | D54: 농촌빈집 정비지원(일반) | E54: 민간자본사업보조 | F54: 농촌빈집정비지원 600,000원*1식 | H54: 600 | I54: 600 | K54: 600 | L54: 600 | M54: 600
A55: 환경관리과 | B55: 효자면 도효자로 1906-7 | C55: 임상섭 | D55: 농촌빈집 정비지원(일반) | E55: 민간자본사업보조 | F55: 농촌빈집정비지원 600,000원*1식 | H55: 600 | I55: 600 | K55: 600 | L55: 600 | M55: 600
A56: 환경관리과 | B56: 효자면 백석리 379 | C56: 김진동 | D56: 농촌빈집 정비지원(일반) | E56: 민간자본사업보조 | F56: 농촌빈집정비지원 600,000원*1식 | H56: 600 | I56: 600 | K56: 600 | L56: 600 | M56: 600
A57: 환경관리과 | B57: 은풍면 부용봉길 117-1 | C57: 남윤문 | D57: 농촌빈집 정비지원(일반) | E57: 민간자본사업보조 | F57: 농촌빈집정비지원 600,000원*1식 | H57: 600 | I57: 600 | K57: 600 | L57: 600 | M57: 600
A58: 환경관리과 | B58: 은풍면 과산골길 25 | C58: 김기남 | D58: 농촌빈집 정비지원(일반) | E58: 민간자본사업보조 | F58: 농촌빈집정비지원 600,000원*1식 | H58: 600 | I58: 600 | K58: 600 | L58: 600 | M58: 600
A59: 환경관리과 | B59: 은풍면 은풍로 193-12 | C59: 정명순 | D59: 농촌빈집 정비지원(일반) | E59: 민간자본사업보조 | F59: 농촌빈집정비지원 600,000원*1식 | H59: 600 | I59: 600 | K59: 600 | L59: 600 | M59: 600
A60: 환경관리과 | B60: 감천면 유동길 169-17 | C60: 윤춘희 | D60: 농촌빈집 정비지원(일반) | E60: 민간자본사업보조 | F60: 농촌빈집정비지원 600,000원*1식 | H60: 600 | I60: 600 | K60: 600 | L60: 600 | M60: 600
A61: 환경관리과 | B61: 감천면 유동길 135 | C61: 임병욱 | D61: 농촌빈집 정비지원(일반) | E61: 민간자본사업보조 | F61: 농촌빈집정비지원 600,000원*1식 | H61: 600 | I61: 600 | K61: 600 | L61: 600 | M61: 600
A62: 환경관리과 | B62: 감천면 덕율4길 65 | C62: 임한섭 | D62: 농촌빈집 정비지원(일반) | E62: 민간자본사업보조 | F62: 농촌빈집정비지원 600,000원*1식 | H62: 600 | I62: 600 | K62: 600 | L62: 600 | M62: 600
A63: 환경관리과 | B63: 감천면 미석2길 119 | C63: 장분순 | D63: 농촌빈집 정비지원(일반) | E63: 민간자본사업보조 | F63: 농촌빈집정비지원 600,000원*1식 | H63: 600 | I63: 600 | K63: 600 | L63: 600 | M63: 600
A64: 환경관리과 | B64: 감천면 미호길 178-11 | C64: 윤기백 | D64: 농촌빈집 정비지원(일반) | E64: 민간자본사업보조 | F64: 농촌빈집정비지원 600,000원*1식 | H64: 600 | I64: 600 | K64: 600 | L64: 600 | M64: 600
A65: 환경관리과 | B65: 보문면 가거리길 37 | C65: 정승조 | D65: 농촌빈집 정비지원(일반) | E65: 민간자본사업보조 | F65: 농촌빈집정비지원 600,000원*1식 | H65: 600 | I65: 600 | K65: 600 | L65: 600 | M65: 600
A66: 환경관리과 | B66: 보문면 기곡리 21-1 | C66: 양춘만 | D66: 농촌빈집 정비지원(일반) | E66: 민간자본사업보조 | F66: 농촌빈집정비지원 600,000원*1식 | H66: 600 | I66: 600 | K66: 600 | L66: 600 | M66: =L66 -> 600
A67: 환경관리과 | B67: 호명면 내신1길 179 | C67: 이영식 | D67: 농촌빈집 정비지원(일반) | E67: 민간자본사업보조 | F67: 농촌빈집정비지원 600,000원*1식 | H67: 600 | I67: 600 | K67: 600 | L67: 600 | M67: =L67 -> 600
A68: 환경관리과 | B68: 호명면 담암길 65-185 | C68: 김상호 | D68: 농촌빈집 정비지원(일반) | E68: 민간자본사업보조 | F68: 농촌빈집정비지원 600,000원*1식 | H68: 600 | I68: 600 | K68: 600 | L68: 600 | M68: 600
A69: 환경관리과 | B69: 호명면 임포길 28-15 | C69: 유자형 | D69: 농촌빈집 정비지원(일반) | E69: 민간자본사업보조 | F69: 농촌빈집정비지원 600,000원*1식 | H69: 600 | I69: 600 | K69: 600 | L69: 600 | M69: 600
A70: 환경관리과 | B70: 유천면 송전길 59 | C70: 백철 | D70: 농촌빈집 정비지원(일반) | E70: 민간자본사업보조 | F70: 농촌빈집정비지원 600,000원*1식 | H70: 600 | I70: 600 | K70: 600 | L70: 600 | M70: 600
A71: 환경관리과 | B71: 유천면 성평길 38-1 | C71: 오헌섭 | D71: 농촌빈집 정비지원(일반) | E71: 민간자본사업보조 | F71: 농촌빈집정비지원 600,000원*1식 | H71: =I71+J71 -> 600 | I71: 600 | K71: 600 | L71: 600 | M71: 600
A72: 환경관리과 | B72: 용궁면 향석길 18 | C72: 이강현 | D72: 농촌빈집 정비지원(일반) | E72: 민간자본사업보조 | F72: 농촌빈집정비지원 600,000원*1식 | H72: 600 | I72: 600 | K72: 600 | L72: 600 | M72: 600
A73: 환경관리과 | B73: 용궁면 덕계1길 68-7 | C73: 도동희 | D73: 농촌빈집 정비지원(일반) | E73: 민간자본사업보조 | F73: 농촌빈집정비지원 600,000원*1식 | H73: 600 | I73: 600 | K73: 600 | L73: 600 | M73: 600
A74: 환경관리과 | B74: 용궁면 왕의산로 65-9 | C74: 전증대 | D74: 농촌빈집 정비지원(일반) | E74: 민간자본사업보조 | F74: 농촌빈집정비지원 600,000원*1식 | H74: 600 | I74: 600 | K74: 600 | L74: 600 | M74: 600
A75: 환경관리과 | B75: 개포면 우감2길 7-12 | C75: 강옥금 | D75: 농촌빈집 정비지원(일반) | E75: 민간자본사업보조 | F75: 농촌빈집정비지원 600,000원*1식 | H75: 600 | I75: 600 | K75: 600 | L75: 600 | M75: 600
A76: 환경관리과 | B76: 개포면 황산1길 124 | C76: 백승환 | D76: 농촌빈집 정비지원(일반) | E76: 민간자본사업보조 | F76: 농촌빈집정비지원 600,000원*1식 | H76: 600 | I76: 600 | K76: 600 | L76: 600 | M76: 600
A77: 환경관리과 | B77: 개포면 용개로 1091-3 | C77: 고영자 | D77: 농촌빈집 정비지원(일반) | E77: 민간자본사업보조 | F77: 농촌빈집정비지원 600,000원*1식 | H77: 600 | I77: 600 | K77: 600 | L77: 600 | M77: 600
A78: 환경관리과 | B78: 지보면 만화1길 34 | C78: 전성우 | D78: 농촌빈집 정비지원(일반) | E78: 민간자본사업보조 | F78: 농촌빈집정비지원 600,000원*1식 | H78: 600 | I78: 600 | K78: 600 | L78: 600 | M78: =L78 -> 600
A79: 환경관리과 | B79: 지보면 오송길 146 | C79: 전재원 | D79: 농촌빈집 정비지원(일반) | E79: 민간자본사업보조 | F79: 농촌빈집정비지원 600,000원*1식 | H79: 600 | I79: 600 | K79: 600 | L79: 600 | M79: 600
A80: 환경관리과 | B80: 지보면 송평길 6 | C80: 권상필 | D80: 농촌빈집 정비지원(일반) | E80: 민간자본사업보조 | F80: 농촌빈집정비지원 600,000원*1식 | H80: 600 | I80: 600 | K80: 600 | L80: 600 | M80: 600
A81: 환경관리과 | B81: 풍양면 삼강로 369 | C81: 권태진 | D81: 농촌빈집 정비지원(일반) | E81: 민간자본사업보조 | F81: 농촌빈집정비지원 600,000원*1식 | H81: 600 | I81: 600 | K81: 600 | L81: 600 | M81: 600
A82: 환경관리과 | B82: 풍양면 공덕길 21-8 | C82: 양승만 | D82: 농촌빈집 정비지원(일반) | E82: 민간자본사업보조 | F82: 농촌빈집정비지원 600,000원*1식 | H82: 600 | I82: 600 | K82: 600 | L82: 600 | M82: 600
A83: 환경관리과 | B83: 풍양면 상풍로 1345-2 | C83: 고신광 | D83: 농촌빈집 정비지원(일반) | E83: 민간자본사업보조 | F83: 농촌빈집정비지원 600,000원*1식 | H83: 600 | I83: 600 | K83: 600 | L83: 600 | M83: 600
A84: 환경관리과 | B84: 용문면 노사길 155 | C84: 김영규 | D84: 농촌빈집 정비지원(슬레이트지원) | E84: 민간자본사업보조 | F84: 농촌빈집정비지원 600,000원*1식 | H84: 6,000 | I84: 6,000 | K84: 6,000 | L84: 6,000 | M84: 6,000
A85: 환경관리과 | B85: 은풍면 내동길 34 | C85: 이동식 | D85: 농촌빈집 정비지원(슬레이트지원) | E85: 민간자본사업보조 | F85: 농촌빈집정비지원 600,000원*1식 | H85: 6,000 | I85: 6,000 | K85: 6,000 | L85: 6,000 | M85: 6,000
A86: 환경관리과 | B86: 감천면 포리1길 2 | C86: 장영덕 | D86: 농촌빈집 정비지원(슬레이트지원) | E86: 민간자본사업보조 | F86: 농촌빈집정비지원 600,000원*1식 | H86: 6,000 | I86: 6,000 | K86: 6,000 | L86: 6,000 | M86: 6,000
A87: 환경관리과 | B87: 호명면 번개길 142 | C87: 황윤주 | D87: 농촌빈집 정비지원(슬레이트지원) | E87: 민간자본사업보조 | F87: 농촌빈집정비지원 600,000원*1식 | H87: 6,000 | I87: 6,000 | K87: 6,000 | L87: 6,000 | M87: =L87 -> 6,000
A88: 환경관리과 | B88: 호명면 내신1길 176-16 | C88: 이영희 | D88: 농촌빈집 정비지원(슬레이트지원) | E88: 민간자본사업보조 | F88: 농촌빈집정비지원 600,000원*1식 | H88: 6,000 | I88: 6,000 | K88: 6,000 | L88: 6,000 | M88: =L88 -> 6,000
A89: 환경관리과 | B89: 유천면 마천리313-9 | C89: 정계영 | D89: 농촌빈집 정비지원(슬레이트지원) | E89: 민간자본사업보조 | F89: 농촌빈집정비지원 600,000원*1식 | H89: 6,000 | I89: 6,000 | K89: 6,000 | L89: 6,000 | M89: 6,000
A90: 환경관리과 | B90: 용궁면 읍부길 67 | C90: 오준식 | D90: 농촌빈집 정비지원(슬레이트지원) | E90: 민간자본사업보조 | F90: 농촌빈집정비지원 600,000원*1식 | H90: 6,000 | I90: 6,000 | K90: 6,000 | L90: 6,000 | M90: 6,000
A91: 환경관리과 | B91: 개포면 봉산길 15 | C91: 고승환 | D91: 농촌빈집 정비지원(슬레이트지원) | E91: 민간자본사업보조 | F91: 농촌빈집정비지원 600,000원*1식 | H91: 6,000 | I91: 6,000 | K91: 6,000 | L91: 6,000 | M91: 6,000
A92: 소계 | C92: =SUBTOTAL(103,C93:C257)&"명" -> 165명 | G92: =SUBTOTAL(9,G93:G257) -> 9,450 | H92: =SUBTOTAL(9,H93:H257) -> 804,060 | I92: 494,858 | J92: 309,202 | K92: 494,858 | L92: 494,858 | M92: 494,858
A93: 농정과 | B93: 감천면 소백로 131-58 | C93: 성종선 | D93: 원예산업 육성지원사업 (일손절감형농기자재) | E93: 민간자본사업보조 | F93: 비가림하우스 2,300천원 * 5동 * 50% | G93: 0 | H93: =I93+J93 -> 11,500 | I93: 5,750 | J93: 5,750 | K93: 5,750 | L93: 5,750 | M93: =L93 -> 5,750
A94: 농정과 | B94: 개포면 동소리길 154-29 | C94: 장교덕 | D94: 원예산업 육성지원사업 (일손절감형농기자재) | E94: 민간자본사업보조 | F94: 비가림하우스 2,300천원 * 2동 * 50% | H94: 4,600 | I94: 2,300 | J94: 2,300 | K94: 2,300 | L94: 2,300 | M94: =L94 -> 2,300
A95: 농정과 | B95: 예천읍 남산공원길9-3 | C95: 이양재 | D95: 원예산업 육성지원사업 (일손절감형농기자재) | E95: 민간자본사업보조 | F95: PO필름 4,000원 * 2,500㎡ * 50% | H95: 10,000 | I95: 5,000 | J95: 5,000 | K95: 5,000 | L95: 5,000 | M95: 5,000
A96: 농정과 | B96: 용궁면 수박작목반 | C96: 박원식 | D96: 원예산업 육성지원사업(일손절감형농기자재) | E96: 민간자본사업보조 | F96: 보온덮개 20,000,000원 * 50% | H96: 20,000 | I96: 10,000 | J96: 10,000 | K96: 10,000 | L96: 10,000 | M96: 10,000
A97: 농정과 | B97: 감천면 소백로 131-58 | C97: 성종선 | D97: 원예산업 육성지원사업 (점적관수시설) | E97: 민간자본사업보조 | F97: 5,000,000원 * 50% | H97: 5,000 | I97: 2,500 | J97: 2,500 | K97: 2,500 | L97: 2,500 | M97: 2,500
A98: 농정과 | B98: 유천면 매산길 60 | C98: 홍성필 | D98: 원예산업 육성지원사업 (점적관수시설) | E98: 민간자본사업보조 | F98: 5,000,000원 * 50% | H98: 5,000 | I98: 2,500 | J98: 2,500 | K98: 2,500 | L98: 2,500 | M98: 2,500
A99: 농정과 | B99: 유천면 화지2길9-9 | C99: 윤희연 | D99: 원예산업 육성지원사업 (점적관수시설) | E99: 민간자본사업보조 | F99: 5,000,000원 * 50% | H99: 5,000 | I99: 2,500 | J99: 2,500 | K99: 2,500 | L99: 2,500 | M99: 2,500
A100: 농정과 | B100: 지보면 오송길 34-14 | C100: 권재규 | D100: 원예산업 육성지원사업 (점적관수시설) | E100: 민간자본사업보조 | F100: 5,000,000원 * 50% | H100: 5,000 | I100: 2,500 | J100: 2,500 | K100: 2,500 | L100: 2,500 | M100: 2,500
A101: 농정과 | B101: 유천면 죽안길 44 | C101: 이옥화 | D101: 소득작목육성 지원 (이동식저온저장고) | E101: 민간자본사업보조 | F101: 6,000,000원 * 1동 * 50% | H101: 6,000 | I101: 3,000 | J101: 3,000 | K101: 3,000 | L101: 3,000 | M101: 3,000
A102: 농정과 | B102: 유천면 용암길 80-4 | C102: 엄춘길 | D102: 소득작목육성 지원 (이동식저온저장고) | E102: 민간자본사업보조 | F102: 6,000,000원 * 1동 * 50% | H102: 6,000 | I102: 3,000 | J102: 3,000 | K102: 3,000 | L102: 3,000 | M102: 3,000
A103: 농정과 | B103: 유천면 고산길70 | C103: 이고창 | D103: 소득작목육성 지원 (이동식저온저장고) | E103: 민간자본사업보조 | F103: 6,000,000원 * 1동 * 50% | H103: 6,000 | I103: 3,000 | J103: 3,000 | K103: 3,000 | L103: 3,000 | M103: 3,000
A104: 농정과 | B104: 감천면 오향길 86-8 | C104: 김상복 | D104: 소득작목육성 지원(내재해형하우스) | E104: 민간자본사업보조 | F104: 20,000,000원 * 1동 * 50% | H104: 20,000 | I104: 10,000 | J104: 10,000 | K104: 10,000 | L104: 10,000 | M104: =L104 -> 10,000
A105: 농정과 | B105: 풍양면 상풍로 1360-14 | C105: 이창식 | D105: 소득작목육성 지원(스프링쿨러) | E105: 민간자본사업보조 | F105: 1,000,000원*1식*50% | H105: 1,000 | I105: 500 | J105: 500 | K105: 500 | L105: 500 | M105: 500
A106: 농정과 | B106: 예천읍 석정길 263 | C106: 권은순 | D106: 민속채소양채류 지원 (이동식저온저장고) | E106: 민간자본사업보조 | F106: 6,000,000원 * 1동 * 50% | H106: 6,000 | I106: 3,000 | J106: 3,000 | K106: 3,000 | L106: 3,000 | M106: 3,000
A107: 농정과 | B107: 예천읍 통명길 50-8 | C107: 윤철근 | D107: 민속채소양채류 지원 (이동식저온저장고) | E107: 민간자본사업보조 | F107: 6,000,000원 * 1동 * 50% | H107: 6,000 | I107: 3,000 | J107: 3,000 | K107: 3,000 | L107: 3,000 | M107: 3,000
A108: 농정과 | B108: 예천읍 생내실길 11-1 | C108: 이근우 | D108: 민속채소양채류 지원 (이동식저온저장고) | E108: 민간자본사업보조 | F108: 6,000,000원 * 1동 * 50% | H108: 6,000 | I108: 3,000 | J108: 3,000 | K108: 3,000 | L108: 3,000 | M108: =L108 -> 3,000
A109: 농정과 | B109: 효자면 도촌길 23 | C109: 남병하 | D109: 민속채소양채류 지원 (이동식저온저장고) | E109: 민간자본사업보조 | F109: 6,000,000원 * 1동 * 50% | H109: 6,000 | I109: 3,000 | J109: 3,000 | K109: 3,000 | L109: 3,000 | M109: =L109 -> 3,000
A110: 농정과 | B110: 효자면 새별길 259 | C110: 이성락 | D110: 민속채소양채류 지원 (이동식저온저장고) | E110: 민간자본사업보조 | F110: 6,000,000원 * 1동 * 50% | H110: 6,000 | I110: 3,000 | J110: 3,000 | K110: 3,000 | L110: 3,000 | M110: 3,000
A111: 농정과 | B111: 은풍면 부용봉길 237 | C111: 전종하 | D111: 민속채소양채류 지원 (이동식저온저장고) | E111: 민간자본사업보조 | F111: 6,000,000원 * 1동 * 50% | H111: 6,000 | I111: 3,000 | J111: 3,000 | K111: 3,000 | L111: 3,000 | M111: 3,000
A112: 농정과 | B112: 은풍면 과산골길 18 | C112: 이인순 | D112: 민속채소양채류 지원 (이동식저온저장고) | E112: 민간자본사업보조 | F112: 6,000,000원 * 1동 * 50% | H112: 6,000 | I112: 3,000 | J112: 3,000 | K112: 3,000 | L112: 3,000 | M112: 3,000
A113: 농정과 | B113: 은풍면 은풍로 75 | C113: 이종환 | D113: 민속채소양채류 지원 (이동식저온저장고) | E113: 민간자본사업보조 | F113: 6,000,000원 * 1동 * 50% | H113: 6,000 | I113: 3,000 | J113: 3,000 | K113: 3,000 | L113: 3,000 | M113: 3,000
A114: 농정과 | B114: 호명면 설늠1길 17-13 | C114: 이상국 | D114: 민속채소양채류 지원 (이동식저온저장고) | E114: 민간자본사업보조 | F114: 6,000,000원 * 1동 * 50% | H114: 6,000 | I114: 3,000 | J114: 3,000 | K114: 3,000 | L114: 3,000 | M114: 3,000
A115: 농정과 | B115: 호명면 백골길 171 | C115: 황기주 | D115: 민속채소양채류 지원 (이동식저온저장고) | E115: 민간자본사업보조 | F115: 6,000,000원 * 1동 * 50% | H115: 6,000 | I115: 3,000 | J115: 3,000 | K115: 3,000 | L115: 3,000 | M115: 3,000
A116: 농정과 | B116: 호명면 종산길 307 | C116: 황완섭 | D116: 민속채소양채류 지원 (이동식저온저장고) | E116: 민간자본사업보조 | F116: 6,000,000원 * 1동 * 50% | H116: 6,000 | I116: 3,000 | J116: 3,000 | K116: 3,000 | L116: 3,000 | M116: 3,000
A117: 농정과 | B117: 지보면 어신1길 81 | C117: 김강옥 | D117: 민속채소양채류 지원 (이동식저온저장고) | E117: 민간자본사업보조 | F117: 6,000,000원 * 1동 * 50% | H117: 6,000 | I117: 3,000 | J117: 3,000 | K117: 3,000 | L117: 3,000 | M117: 3,000
A118: 농정과 | B118: 지보면 예지로 505-7 | C118: 이도인 | D118: 민속채소양채류 지원 (이동식저온저장고) | E118: 민간자본사업보조 | F118: 6,000,000원 * 1동 * 50% | H118: 6,000 | I118: 3,000 | J118: 3,000 | K118: 3,000 | L118: 3,000 | M118: 3,000
A119: 농정과 | B119: 지보면 수월2길 152-1 | C119: 최재인 | D119: 민속채소양채류 지원 (이동식저온저장고) | E119: 민간자본사업보조 | F119: 6,000,000원 * 1동 * 50% | H119: 6,000 | I119: 3,000 | J119: 3,000 | K119: 3,000 | L119: 3,000 | M119: 3,000
A120: 농정과 | B120: 지보면 소화1길 17 | C120: 김병화 | D120: 민속채소양채류 지원 (이동식저온저장고) | E120: 민간자본사업보조 | F120: 6,000,000원 * 1동 * 50% | H120: 6,000 | I120: 3,000 | J120: 3,000 | K120: 3,000 | L120: 3,000 | M120: 3,000
A121: 농정과 | B121: 지보면 지보로 167-3 | C121: 박경하 | D121: 민속채소양채류 지원 (이동식저온저장고) | E121: 민간자본사업보조 | F121: 6,000,000원 * 1동 * 50% | H121: 6,000 | I121: 3,000 | J121: 3,000 | K121: 3,000 | L121: 3,000 | M121: 3,000
A122: 농정과 | B122: 지보면 매화길 36 | C122: 정건영 | D122: 민속채소양채류 지원 (이동식저온저장고) | E122: 민간자본사업보조 | F122: 6,000,000원 * 1동 * 50% | H122: 6,000 | I122: 3,000 | J122: 3,000 | K122: 3,000 | L122: 3,000 | M122: 3,000
A123: 농정과 | B123: 지보면 매화길 34-38 | C123: 정복순 | D123: 민속채소양채류 지원 (이동식저온저장고) | E123: 민간자본사업보조 | F123: 6,000,000원 * 1동 * 50% | H123: 6,000 | I123: 3,000 | J123: 3,000 | K123: 3,000 | L123: 3,000 | M123: 3,000
A124: 농정과 | B124: 풍양면 삼탄길 143 | C124: 윤인한 | D124: 민속채소양채류 지원 (이동식저온저장고) | E124: 민간자본사업보조 | F124: 6,000,000원 * 1동 * 50% | H124: 6,000 | I124: 3,000 | J124: 3,000 | K124: 3,000 | L124: 3,000 | M124: 3,000
A125: 농정과 | B125: 풍양면 우망길 243-3 | C125: 정진재 | D125: 민속채소양채류 지원 (이동식저온저장고) | E125: 민간자본사업보조 | F125: 6,000,000원 * 1동 * 50% | H125: 6,000 | I125: 3,000 | J125: 3,000 | K125: 3,000 | L125: 3,000 | M125: 3,000
A126: 농정과 | B126: 풍양면 영풍로 176 | C126: 홍순환 | D126: 민속채소양채류 지원 (이동식저온저장고) | E126: 민간자본사업보조 | F126: 6,000,000원 * 1동 * 50% | H126: 6,000 | I126: 3,000 | J126: 3,000 | K126: 3,000 | L126: 3,000 | M126: 3,000
A127: 농정과 | B127: 풍양면 청운길 55 | C127: 권영배 | D127: 민속채소양채류 지원 (이동식저온저장고) | E127: 민간자본사업보조 | F127: 6,000,000원 * 1동 * 50% | H127: 6,000 | I127: 3,000 | J127: 3,000 | K127: 3,000 | L127: 3,000 | M127: 3,000
A128: 농정과 | B128: 풍양면 구룡길 102 | C128: 이준복 | D128: 민속채소양채류 지원 (이동식저온저장고) | E128: 민간자본사업보조 | F128: 6,000,000원 * 1동 * 50% | H128: 6,000 | I128: 3,000 | J128: 3,000 | K128: 3,000 | L128: 3,000 | M128: 3,000
A129: 농정과 | B129: 풍양면 목골길 45 | C129: 위성배 | D129: 민속채소양채류 지원 (이동식저온저장고) | E129: 민간자본사업보조 | F129: 6,000,000원 * 1동 * 50% | H129: 6,000 | I129: 3,000 | J129: 3,000 | K129: 3,000 | L129: 3,000 | M129: =L129 -> 3,000
A130: 농정과 | B130: 풍양면 공덕길 143-11 | C130: 장영식 | D130: 민속채소양채류 지원 (이동식저온저장고) | E130: 민간자본사업보조 | F130: 6,000,000원 * 1동 * 50% | H130: 6,000 | I130: 3,000 | J130: 3,000 | K130: 3,000 | L130: 3,000 | M130: =L130 -> 3,000
A131: 농정과 | B131: 감천면 산의실길 185 | C131: 김수호 | D131: 인삼생약 지원(이동식저온저장고) | E131: 민간자본사업보조 | F131: 6,000,000원 * 1동 * 50% | H131: 6,000 | I131: 3,000 | J131: 3,000 | K131: 3,000 | L131: 3,000 | M131: 3,000
A132: 농정과 | B132: 보문면 보문로 654 | C132: 김윤하 | D132: 인삼생약 지원(이동식저온저장고) | E132: 민간자본사업보조 | F132: 6,000,000원 * 1동 * 50% | H132: 6,000 | I132: 3,000 | J132: 3,000 | K132: 3,000 | L132: 3,000 | M132: 3,000
A133: 농정과 | B133: 보문면 편달길 80 | C133: 윤해일 | D133: 인삼생약 지원(이동식저온저장고) | E133: 민간자본사업보조 | F133: 6,000,000원 * 1동 * 50% | H133: 6,000 | I133: 3,000 | J133: 3,000 | K133: 3,000 | L133: 3,000 | M133: 3,000
A134: 농정과 | B134: 보문면 가거리길 25-5 | C134: 정화자 | D134: 인삼생약 지원(이동식저온저장고) | E134: 민간자본사업보조 | F134: 6,000,000원 * 1동 * 50% | H134: 6,000 | I134: 3,000 | J134: 3,000 | K134: 3,000 | L134: 3,000 | M134: 3,000
A135: 농정과 | B135: 보문면 독죽골길 61-83 | C135: 최재수 | D135: 인삼생약 지원(이동식저온저장고) | E135: 민간자본사업보조 | F135: 6,000,000원 * 1동 * 50% | H135: =I135+J135 -> 6,000 | I135: 3,000 | J135: 3,000 | K135: 3,000 | L135: 3,000 | M135: 3,000
A136: 농정과 | B136: 보문면 수락대로 177 | C136: 김덕한 | D136: 인삼생약 지원(이동식저온저장고) | E136: 민간자본사업보조 | F136: 6,000,000원 * 1동 * 50% | H136: 6,000 | I136: 3,000 | J136: 3,000 | K136: 3,000 | L136: 3,000 | M136: 3,000
A137: 농정과 | B137: 용궁면 회룡길 182-7 | C137: 박운환 | D137: 인삼생약 지원(이동식저온저장고) | E137: 민간자본사업보조 | F137: 6,000,000원 * 1동 * 50% | H137: 6,000 | I137: 3,000 | J137: 3,000 | K137: 3,000 | L137: 3,000 | M137: 3,000
A138: 농정과 | B138: 용궁면 산택길 11-15 | C138: 천호정 | D138: 인삼생약 지원(이동식저온저장고) | E138: 민간자본사업보조 | F138: 6,000,000원 * 1동 * 50% | H138: 6,000 | I138: 3,000 | J138: 3,000 | K138: 3,000 | L138: 3,000 | M138: 3,000
A139: 농정과 | B139: 개포면 장송길 137 | C139: 김인진 | D139: 인삼생약 지원(이동식저온저장고) | E139: 민간자본사업보조 | F139: 6,000,000원 * 1동 * 50% | H139: 6,000 | I139: 3,000 | J139: 3,000 | K139: 3,000 | L139: 3,000 | M139: 3,000
A140: 농정과 | B140: 개포면 황산2길 19-11 | C140: 이상익 | D140: 인삼생약 지원(이동식저온저장고) | E140: 민간자본사업보조 | F140: 6,000,000원 * 1동 * 50% | H140: 6,000 | I140: 3,000 | J140: 3,000 | K140: 3,000 | L140: 3,000 | M140: 3,000
A141: 농정과 | B141: 호명면 강변로 166 | C141: 안기태 | D141: 에너지이용효율화(자동보온덮개) | E141: 민간자본사업보조 | F141: 2,500원 * 720㎡ * 50% | H141: 1,800 | I141: 900 | J141: 900 | K141: 900 | L141: 900 | M141: 900
A142: 농정과 | B142: 호명면 인포길 16-7 | C142: 우상윤 | D142: 에너지이용효율화(자동보온덮개) | E142: 민간자본사업보조 | F142: 2,500원 * 200㎡ * 50% | H142: 500 | I142: 250 | J142: 250 | K142: 250 | L142: 250 | M142: 250
A143: 농정과 | B143: 호명면 봉호로 4184-35 | C143: 박현범 | D143: 에너지이용효율화(자동보온덮개) | E143: 민간자본사업보조 | F143: 2,500원 * 400㎡ * 50% | H143: 1,000 | I143: 500 | J143: 500 | K143: 500 | L143: 500 | M143: =L143 -> 500
A144: 농정과 | B144: 호명면 내신1길 104-3 | C144: 김현수 | D144: 에너지이용효율화(자동보온덮개) | E144: 민간자본사업보조 | F144: 2,500원 * 800㎡ * 50% | H144: 2,000 | I144: 1,000 | J144: 1,000 | K144: 1,000 | L144: 1,000 | M144: 1,000
A145: 농정과 | B145: 호명면 내신2길 237-5 | C145: 김준하 | D145: 에너지이용효율화(자동보온덮개) | E145: 민간자본사업보조 | F145: 2,500원 * 1,000㎡ * 50% | H145: 2,500 | I145: 1,250 | J145: 1,250 | K145: 1,250 | L145: 1,250 | M145: 1,250
A146: 농정과 | B146: 용궁면 용궁로 127-6 | C146: 윤종열 | D146: 에너지이용효율화(다겹보온커튼) | E146: 민간자본사업보조 | F146: 13,000원 * 1,000㎡ * 50% | H146: 13,000 | I146: 6,500 | J146: 6,500 | K146: 6,500 | L146: 6,500 | M146: 6,500
A147: 농정과 | B147: 용궁면 읍부3길 39 | C147: 윤준식 | D147: 에너지이용효율화(다겹보온커튼) | E147: 민간자본사업보조 | F147: 13,000원 * 1,000㎡ * 50% | H147: 13,000 | I147: 6,500 | J147: 6,500 | K147: 6,500 | L147: 6,500 | M147: 6,500
A148: 농정과 | B148: 용궁면 강당길 38-20 | C148: 전재명 | D148: 에너지이용효율화(다겹보온커튼) | E148: 민간자본사업보조 | F148: 13,000원 * 1,800㎡ * 50% | H148: 23,400 | I148: 11,700 | J148: 11,700 | K148: 11,700 | L148: 11,700 | M148: 11,700
A149: 농정과 | B149: 예천군 개포면 신음리길 20-8 | C149: 조현준 | D149: 원예특용작물 점적관수시설 지원사업 | E149: 민간자본사업보조 | F149: 관수관비시설 1개소*16,000천원*50% | H149: 16,000 | I149: 8,000 | J149: 8,000 | K149: 8,000 | L149: 8,000 | M149: 8,000
A150: 농정과 | B150: 유천면 수심1길 95 | C150: 예천버드내토종잡곡 영농조합법인(김상봉) | D150: 토종곡물 재배단지 지원 | E150: 민간자본사업보조 | F150: 토종곡물 재배단지 농자재지원(7ha) | G150: 4,900 | H150: 7,000 | I150: 4,900 | J150: 2,100 | K150: 4,900 | L150: 4,900 | M150: =L150 -> 4,900
A151: 농정과 | B151: 용궁면 용궁로 137-2 | C151: 용궁 무이 재배단지(윤경덕) | D151: 토종곡물 재배단지 지원 | E151: 민간자본사업보조 | F151: 토종곡물 재배단지 농자재지원(5ha) | G151: 3,500 | H151: 5,000 | I151: 3,500 | J151: 1,500 | K151: 3,500 | L151: 3,500 | M151: =L151 -> 3,500
A152: 농정과 | B152: 용궁면 경서로 1264 | C152: 용궁 무지 재배단지 (안승만) | D152: 토종곡물 재배단지 지원 | E152: 민간자본사업보조 | F152: 토종곡물 재배단지 농자재지원(5ha) | H152: 5,000 | I152: 3,500 | J152: 1,500 | K152: 3,500 | L152: 3,500 | M152: 3,500
A153: 농정과 | B153: 풍양면 청운3리길 33 | C153: 풍양 청운지구(정해보) | D153: 토종곡물 재배단지 지원 | E153: 민간자본사업보조 | F153: 토종곡물 재배단지 농자재지원(4ha) | G153: 1,050 | H153: 2,000 | I153: 1,400 | J153: 600 | K153: 1,400 | L153: 1,400 | M153: 1,400
A154: 농정과 | B154: 보문면 무근열길 162-9 | C154: 김점순 | D154: 고구마 종순 증식용 온실 지원 | E154: 민간자본사업보조 | F154: 온실설치 1,320㎡ | H154: 79,200 | I154: 63,360 | J154: 15,840 | K154: 63,360 | L154: 63,360 | M154: 63,360
A155: 농정과 | B155: 보문면 노트기길 256-28 | C155: 김하진 | D155: 고구마 종순 증식용 온실 지원 | E155: 민간자본사업보조 | F155: 온실설치 1,320㎡ | H155: 79,200 | I155: 63,360 | J155: 15,840 | K155: 63,360 | L155: 63,360 | M155: 63,360
A156: 농정과 | B156: 보문면 무근열길 62 | C156: 이교직 | D156: 고구마 종순 증식용 온실 지원 | E156: 민간자본사업보조 | F156: 온실설치 1,320㎡ | H156: 79,200 | I156: 63,360 | J156: 15,840 | K156: 63,360 | L156: 63,360 | M156: 63,360
A157: 농정과 | B157: 보문면 가거리길 36 | C157: 김도영 | D157: 고구마 종순 증식용 온실 지원 | E157: 민간자본사업보조 | F157: 온실설치 986㎡ | H157: 59,160 | I157: 47,328 | J157: 11,832 | K157: 47,328 | L157: 47,328 | M157: 47,328
A158: 농정과 | B158: 예천읍 통명길 50-8 | C158: 윤철근 | D158: 공공비축미 톤백저울 지원 | E158: 민간자본사업보조 | F158: 1,000천원*50% | H158: 1,000 | I158: 500 | J158: 500 | K158: 500 | L158: 500 | M158: 500
A159: 농정과 | B159: 예천읍 통명길 43-5 | C159: 안승규 | D159: 공공비축미 톤백저울 지원 | E159: 민간자본사업보조 | F159: 1,000천원*50% | H159: 1,000 | I159: 500 | J159: 500 | K159: 500 | L159: 500 | M159: 500
A160: 농정과 | B160: 예천읍 용산길 62 | C160: 이상철 | D160: 공공비축미 톤백저울 지원 | E160: 민간자본사업보조 | F160: 1,000천원*50% | H160: 1,000 | I160: 500 | J160: 500 | K160: 500 | L160: 500 | M160: 500
A161: 농정과 | B161: 예천읍 충효로 376-20 | C161: 김태동 | D161: 공공비축미 톤백저울 지원 | E161: 민간자본사업보조 | F161: 1,000천원*50% | H161: 1,000 | I161: 500 | J161: 500 | K161: 500 | L161: 500 | M161: 500
A162: 농정과 | B162: 예천읍 신리길 25-6 | C162: 이재홍 | D162: 공공비축미 톤백저울 지원 | E162: 민간자본사업보조 | F162: 1,000천원*50% | H162: 1,000 | I162: 500 | J162: 500 | K162: 500 | L162: 500 | M162: 500
A163: 농정과 | B163: 예천읍 청복리길 35-15 | C163: 박진석 | D163: 공공비축미 톤백저울 지원 | E163: 민간자본사업보조 | F163: 1,000천원*50% | H163: 1,000 | I163: 500 | J163: 500 | K163: 500 | L163: 500 | M163: 500
A164: 농정과 | B164: 예천읍 용정길 23 | C164: 박병기 | D164: 공공비축미 톤백저울 지원 | E164: 민간자본사업보조 | F164: 1,000천원*50% | H164: 1,000 | I164: 500 | J164: 500 | K164: 500 | L164: 500 | M164: 500
A165: 농정과 | B165: 예천읍 상동길 72 | C165: 권재덕 | D165: 공공비축미 톤백저울 지원 | E165: 민간자본사업보조 | F165: 1,000천원*50% | H165: 1,000 | I165: 500 | J165: 500 | K165: 500 | L165: 500 | M165: 500
A166: 농정과 | B166: 예천읍 대심2길 63 | C166: 엄상철 | D166: 공공비축미 톤백저울 지원 | E166: 민간자본사업보조 | F166: 1,000천원*50% | H166: 1,000 | I166: 500 | J166: 500 | K166: 500 | L166: 500 | M166: 500
A167: 농정과 | B167: 예천읍 왕신1리길 70 | C167: 김재덕 | D167: 공공비축미 톤백저울 지원 | E167: 민간자본사업보조 | F167: 1,000천원*50% | H167: 1,000 | I167: 500 | J167: 500 | K167: 500 | L167: 500 | M167: 500
A168: 농정과 | B168: 용문면 금당실길 79 | C168: 안준식 | D168: 공공비축미 톤백저울 지원 | E168: 민간자본사업보조 | F168: 1,000천원*50% | H168: 1,000 | I168: 500 | J168: 500 | K168: 500 | L168: 500 | M168: 500
A169: 농정과 | B169: 용문면 상금시장길 48 | C169: 박영칠 | D169: 공공비축미 톤백저울 지원 | E169: 민간자본사업보조 | F169: 1,000천원*50% | H169: 1,000 | I169: 500 | J169: 500 | K169: 500 | L169: 500 | M169: 500
A170: 농정과 | B170: 용문면 성현길 88 | C170: 한위석 | D170: 공공비축미 톤백저울 지원 | E170: 민간자본사업보조 | F170: 1,000천원*50% | H170: 1,000 | I170: 500 | J170: 500 | K170: 500 | L170: 500 | M170: 500
A171: 농정과 | B171: 용문면 덕신길 126 | C171: 권영한 | D171: 공공비축미 톤백저울 지원 | E171: 민간자본사업보조 | F171: 1,000천원*50% | H171: 1,000 | I171: 500 | J171: 500 | K171: 500 | L171: 500 | M171: =L171 -> 500
A172: 농정과 | B172: 용문면 노사길143 | C172: 황병환 | D172: 공공비축미 톤백저울 지원 | E172: 민간자본사업보조 | F172: 1,000천원*50% | H172: 1,000 | I172: 500 | J172: 500 | K172: 500 | L172: 500 | M172: =L172 -> 500
A173: 농정과 | B173: 용문면 구계길 32-25 | C173: 변우옥 | D173: 공공비축미 톤백저울 지원 | E173: 민간자본사업보조 | F173: 1,000천원*50% | H173: 1,000 | I173: 500 | J173: 500 | K173: 500 | L173: 500 | M173: 500
A174: 농정과 | B174: 용문면 직동길146-8 | C174: 임환광 | D174: 공공비축미 톤백저울 지원 | E174: 민간자본사업보조 | F174: 1,000천원*50% | H174: 1,000 | I174: 500 | J174: 500 | K174: 500 | L174: 500 | M174: 500
A175: 농정과 | B175: 용문면 두천길 71 | C175: 손관수 | D175: 공공비축미 톤백저울 지원 | E175: 민간자본사업보조 | F175: 1,000천원*50% | H175: 1,000 | I175: 500 | J175: 500 | K175: 500 | L175: 500 | M175: 500
A176: 농정과 | B176: 용문면 사부령길337 | C176: 황철호 | D176: 공공비축미 톤백저울 지원 | E176: 민간자본사업보조 | F176: 1,000천원*50% | H176: 1,000 | I176: 500 | J176: 500 | K176: 500 | L176: 500 | M176: 500
A177: 농정과 | B177: 용문면 대제리 79-2 | C177: 박영환 | D177: 공공비축미 톤백저울 지원 | E177: 민간자본사업보조 | F177: 1,000천원*50% | H177: 1,000 | I177: 500 | J177: 500 | K177: 500 | L177: 500 | M177: 500
A178: 농정과 | B178: 용문면 덕신길 120 | C178: 박정희 | D178: 공공비축미 톤백저울 지원 | E178: 민간자본사업보조 | F178: 1,000천원*50% | H178: 1,000 | I178: 500 | J178: 500 | K178: 500 | L178: 500 | M178: 500
A179: 농정과 | B179: 감천면 포리2길 4-5 | C179: 박찬철 | D179: 공공비축미 톤백저울 지원 | E179: 민간자본사업보조 | F179: 1,000천원*50% | H179: 1,000 | I179: 500 | J179: 500 | K179: 500 | L179: 500 | M179: 500
A180: 농정과 | B180: 감천면 충효로 1251-39 | C180: 박영우 | D180: 공공비축미 톤백저울 지원 | E180: 민간자본사업보조 | F180: 1,000천원*50% | H180: 1,000 | I180: 500 | J180: 500 | K180: 500 | L180: 500 | M180: 500
A181: 농정과 | B181: 감천면 덕율4길 56-4 | C181: 장복현 | D181: 공공비축미 톤백저울 지원 | E181: 민간자본사업보조 | F181: 1,000천원*50% | H181: 1,000 | I181: 500 | J181: 500 | K181: 500 | L181: 500 | M181: 500
A182: 농정과 | B182: 감천면 한천사길 72 | C182: 조원호 | D182: 공공비축미 톤백저울 지원 | E182: 민간자본사업보조 | F182: 1,000천원*50% | H182: 1,000 | I182: 500 | J182: 500 | K182: 500 | L182: 500 | M182: 500
A183: 농정과 | B183: 감천면 미석1길 58-7 | C183: 정귀용 | D183: 공공비축미 톤백저울 지원 | E183: 민간자본사업보조 | F183: 1,000천원*50% | H183: 1,000 | I183: 500 | J183: 500 | K183: 500 | L183: 500 | M183: 500
A184: 농정과 | B184: 감천면 옥계천로 65 | C184: 김하진 | D184: 공공비축미 톤백저울 지원 | E184: 민간자본사업보조 | F184: 1,000천원*50% | H184: 1,000 | I184: 500 | J184: 500 | K184: 500 | L184: 500 | M184: 500
A185: 농정과 | B185: 감천면 옥계천로 306-50 | C185: 변두량 | D185: 공공비축미 톤백저울 지원 | E185: 민간자본사업보조 | F185: 1,000천원*50% | H185: 1,000 | I185: 500 | J185: 500 | K185: 500 | L185: 500 | M185: 500
A186: 농정과 | B186: 감천면 대맥길 19 | C186: 박래흠 | D186: 공공비축미 톤백저울 지원 | E186: 민간자본사업보조 | F186: 1,000천원*50% | H186: 1,000 | I186: 500 | J186: 500 | K186: 500 | L186: 500 | M186: 500
A187: 농정과 | B187: 감천면 장산2길 65-1 | C187: 정의철 | D187: 공공비축미 톤백저울 지원 | E187: 민간자본사업보조 | F187: 1,000천원*50% | H187: 1,000 | I187: 500 | J187: 500 | K187: 500 | L187: 500 | M187: 500
A188: 농정과 | B188: 감천면 석송로 333-6 | C188: 권충락 | D188: 공공비축미 톤백저울 지원 | E188: 민간자본사업보조 | F188: 1,000천원*50% | H188: 1,000 | I188: 500 | J188: 500 | K188: 500 | L188: 500 | M188: 500
A189: 농정과 | B189: 보문면 편달길 92 | C189: 김승한 | D189: 공공비축미 톤백저울 지원 | E189: 민간자본사업보조 | F189: 1,000천원*50% | H189: 1,000 | I189: 500 | J189: 500 | K189: 500 | L189: 500 | M189: 500
A190: 농정과 | B190: 보문면 웃노트기길 19 | C190: 홍승용 | D190: 공공비축미 톤백저울 지원 | E190: 민간자본사업보조 | F190: 1,000천원*50% | H190: 1,000 | I190: 500 | J190: 500 | K190: 500 | L190: 500 | M190: 500
A191: 농정과 | B191: 보문면 일방길 86 | C191: 박찬능 | D191: 공공비축미 톤백저울 지원 | E191: 민간자본사업보조 | F191: 1,000천원*50% | H191: 1,000 | I191: 500 | J191: 500 | K191: 500 | L191: 500 | M191: 500
A192: 농정과 | B192: 보문면 덕거리길 32 | C192: 강창원 | D192: 공공비축미 톤백저울 지원 | E192: 민간자본사업보조 | F192: 1,000천원*50% | H192: 1,000 | I192: 500 | J192: 500 | K192: 500 | L192: 500 | M192: =L192 -> 500
A193: 농정과 | B193: 보문면 독죽골길 59 | C193: 배동현 | D193: 공공비축미 톤백저울 지원 | E193: 민간자본사업보조 | F193: 1,000천원*50% | H193: 1,000 | I193: 500 | J193: 500 | K193: 500 | L193: 500 | M193: =L193 -> 500
A194: 농정과 | B194: 보문면 들미고개길 60 | C194: 김창동 | D194: 공공비축미 톤백저울 지원 | E194: 민간자본사업보조 | F194: 1,000천원*50% | H194: 1,000 | I194: 500 | J194: 500 | K194: 500 | L194: 500 | M194: 500
A195: 농정과 | B195: 보문면 보문로 1347-12 | C195: 송인철 | D195: 공공비축미 톤백저울 지원 | E195: 민간자본사업보조 | F195: 1,000천원*50% | H195: 1,000 | I195: 500 | J195: 500 | K195: 500 | L195: 500 | M195: 500
A196: 농정과 | B196: 보문면 신운길 162-3 | C196: 신인용 | D196: 공공비축미 톤백저울 지원 | E196: 민간자본사업보조 | F196: 1,000천원*50% | H196: 1,000 | I196: 500 | J196: 500 | K196: 500 | L196: 500 | M196: 500
A197: 농정과 | B197: 보문면 수양길 5 | C197: 김정태 | D197: 공공비축미 톤백저울 지원 | E197: 민간자본사업보조 | F197: 1,000천원*50% | H197: 1,000 | I197: 500 | J197: 500 | K197: 500 | L197: 500 | M197: 500
A198: 농정과 | B198: 보문면 보문로 805-7 | C198: 이영배 | D198: 공공비축미 톤백저울 지원 | E198: 민간자본사업보조 | F198: 1,000천원*50% | H198: 1,000 | I198: 500 | J198: 500 | K198: 500 | L198: 500 | M198: 500
A199: 농정과 | B199: 보문면 솔티길 78 | C199: 박재식 | D199: 공공비축미 톤백저울 지원 | E199: 민간자본사업보조 | F199: 1,000천원*50% | H199: =I199+J199 -> 1,000 | I199: 500 | J199: 500 | K199: 500 | L199: 500 | M199: 500
A200: 농정과 | B200: 보문면 신월리 750-4 | C200: 김복현 | D200: 공공비축미 톤백저울 지원 | E200: 민간자본사업보조 | F200: 1,000천원*50% | H200: 1,000 | I200: 500 | J200: 500 | K200: 500 | L200: 500 | M200: 500
... 80 more rows
